lending/lending_fUSD_20241120
["ID","MTS","AMOUNT","RATE_DAILY","PERIOD"]
[342802516,1732143100655,-500.0,0.00056164,120]
[342802517,1732143100664,-617.4,0.00056164,120]
[342802518,1732143100676,-500.0,0.00056164,120]
[342802519,1732143100686,-530.21,0.00056164,120]
[342802520,1732143100695,-1021.22,0.00056164,120]
[342802521,1732143100703,-500.0,0.00056164,120]
[342802522,1732143100712,-151.0,0.00056164,120]
[342802523,1732143100722,-4078.12,0.00056164,120]
[342802524,1732143100733,-500.0,0.00056164,120]
[342802525,1732143100743,-185.406492,0.00056164,120]
[342802526,1732143100752,-1271.08,0.00056164,120]
[342802527,1732143100763,-500.0,0.00056164,120]
[342802528,1732143100774,-630.13,0.00056164,120]
[342802529,1732143100783,-1053.42,0.00056164,120]
[342802530,1732143100794,-3054.48,0.00056164,120]
[342802531,1732143100804,-868.75,0.00056164,120]
[342802532,1732143100814,-10737.37,0.00056164,21]
[342802533,1732143100824,-772.0,0.00056164,120]
[342802534,1732143100833,-185.406492,0.00056164,120]
[342802535,1732143100842,-1615.7,0.00056164,120]
[342802536,1732143100853,-500.0,0.00056164,120]
[342802537,1732143100863,-790.82,0.00056164,120]
[342802538,1732143100873,-500.0,0.00056164,120]
[342802539,1732143100884,-500.0,0.00056164,120]
[342802540,1732143100897,-500.0,0.00056164,120]
[342802541,1732143100908,-500.0,0.00056164,120]
[342802542,1732143100918,-500.0,0.00056164,120]
[342802543,1732143100929,-500.0,0.00056164,120]
[342802544,1732143100938,-500.0,0.00056164,120]
[342802545,1732143100948,-2780.77,0.00056164,120]
[342802546,1732143100958,-500.0,0.00056164,120]
[342802547,1732143100970,-3170.06,0.00056164,120]
[342802548,1732143100980,-189.710059,0.00056164,120]
[342802549,1732143100989,-530.51,0.00056164,120]
[342802550,1732143100998,-500.0,0.00056164,120]
[342802551,1732143101007,-814.28,0.00056164,120]
[342802552,1732143101016,-500.0,0.00056164,120]
[342802553,1732143101026,-500.0,0.00056164,120]
[342802554,1732143101036,-500.0,0.00056164,120]
[342802555,1732143101045,-189.710059,0.00056164,120]
[342802556,1732143101055,-4610.65,0.00056164,120]
[342802557,1732143101065,-1053.94,0.00056164,120]
[342802558,1732143101074,-832.21,0.00056164,120]
[342802559,1732143101083,-559.12,0.00056164,120]
[342802560,1732143101092,-500.0,0.00056164,120]
[342802561,1732143101102,-500.0,0.00056164,120]
[342802562,1732143101111,-962.23,0.00056164,120]
[342802563,1732143101120,-500.0,0.00056164,120]
[342802564,1732143101130,-630.95,0.00056164,120]
[342802565,1732143101140,-500.0,0.00056164,120]
[342802566,1732143101149,-7093.52,0.00056164,120]
[342802567,1732143101159,-1497.99,0.00056164,120]
[342802568,1732143101169,-3030.53,0.00056164,120]
[342802569,1732143101178,-500.0,0.00056164,120]
[342802570,1732143101188,-2002.76,0.00056164,120]
[342802571,1732143101199,-4996.62,0.00056164,120]
[342802572,1732143101208,-1038.47,0.00056164,120]
[342802573,1732143101217,-500.0,0.00056164,120]
[342802574,1732143101227,-3755.03,0.00056164,120]
[342802575,1732143101236,-500.0,0.00056164,120]
[342802576,1732143101246,-500.33,0.00056164,120]
[342802577,1732143101255,-500.0,0.00056164,120]
[342802578,1732143101266,-151.0,0.00056164,120]
[342802579,1732143101276,-619.43,0.00056164,120]
[342802580,1732143101285,-1395.84,0.00056164,120]
[342802581,1732143101294,-4210.05,0.00056164,120]
[342802582,1732143101304,-6717.87,0.00056164,120]
[342802583,1732143101314,-500.0,0.00056164,120]
[342802584,1732143101323,-4619.32,0.00056164,120]
[342802585,1732143101334,-2125.56,0.00056164,120]
[342802586,1732143101343,-500.0,0.00056164,120]
[342802587,1732143101353,-1522.48,0.00056164,120]
[342802588,1732143101363,-500.0,0.00056164,120]
[342802589,1732143101372,-2913.49,0.00056164,120]
[342802590,1732143101383,-291.184775,0.00056164,120]
[342802591,1732143101394,-500.0,0.00056164,120]
[342802592,1732143101403,-500.0,0.00056164,120]
[342802593,1732143101413,-500.0,0.00056164,120]
[342802594,1732143101424,-6408.58,0.00056164,60]
[342802595,1732143101433,-163.746603,0.00056164,120]
[342802596,1732143101442,-8536.13,0.00056164,120]
[342802597,1732143101452,-500.0,0.00056164,120]
[342802598,1732143101462,-931.52,0.00056164,120]
[342802599,1732143101471,-5185.83,0.00056164,120]
[342802600,1732143101481,-500.0,0.00056164,120]
[342802601,1732143101490,-873.24,0.00056164,120]
[342802602,1732143101500,-1838.8,0.00056164,120]
[342802603,1732143101510,-163.746603,0.00056164,120]
[342802604,1732143101519,-500.0,0.00056164,120]
[342802605,1732143101530,-1525.45,0.00056164,120]
[342802606,1732143101539,-1373.0,0.00056164,120]
[342802607,1732143101549,-1659.86,0.00056164,120]
[342802608,1732143101558,-500.0,0.00056164,120]
[342802609,1732143101568,-500.0,0.00056164,120]
[342802610,1732143101577,-5907.77,0.00056164,120]
[342802611,1732143101587,-647.02,0.00056164,120]
[342802612,1732143101595,-1210.69,0.00056164,120]
[342802613,1732143101604,-500.0,0.00056164,120]
[342802614,1732143101615,-500.0,0.00056164,120]
[342802615,1732143101624,-526.64,0.00056164,120]
[342802616,1732143101634,-12504.89,0.00056164,120]
[342802617,1732143101644,-2076.98,0.00056164,120]
[342802618,1732143101655,-1181.36,0.00056164,120]
[342802619,1732143101665,-677.21,0.00056164,120]
[342802620,1732143101677,-2434.04,0.00056164,120]
[342802621,1732143101686,-1109.03,0.00056164,120]
[342802622,1732143101695,-500.0,0.00056164,120]
[342802623,1732143101705,-500.0,0.00056164,120]
[342802624,1732143101714,-151.0,0.00056164,30]
[342802625,1732143101724,-1099.32,0.00056164,120]
[342802626,1732143101733,-4681.73,0.00056164,120]
[342802627,1732143101742,-651.95,0.00056164,120]
[342802628,1732143101752,-151.0,0.00056164,120]
[342802629,1732143101760,-1502.22,0.00056164,120]
[342802630,1732143101770,-500.0,0.00056164,120]
[342802631,1732143101779,-757.95,0.00056164,120]
[342802632,1732143101788,-986.66,0.00056164,120]
[342802633,1732143101797,-500.0,0.00056164,120]
[342802634,1732143101807,-157.433039,0.00056164,120]
[342802635,1732143101817,-151.0,0.00056164,120]
[342802636,1732143101826,-880.48,0.00056164,120]
[342802637,1732143101835,-500.0,0.00056164,120]
[342802638,1732143101844,-1166.87,0.00056164,120]
[342802639,1732143101853,-151.0,0.00056164,120]
[342802640,1732143101863,-1450.31,0.00056164,120]
[342802641,1732143101872,-223.607947,0.00056164,120]
[342802642,1732143101882,-2144.4,0.00056164,120]
[342802643,1732143101894,-548.14,0.00056164,120]
[342802644,1732143101903,-151.0,0.00056164,120]
[342802645,1732143101913,-500.0,0.00056164,120]
[342802646,1732143101924,-1032.14,0.00056164,120]
[342802647,1732143101934,-14474.38,0.00056164,120]
[342802648,1732143101944,-16729.96,0.00056164,120]
[342802649,1732143101954,-500.0,0.00056164,120]
[342802650,1732143101964,-500.0,0.00056164,120]
[342802651,1732143101974,-500.0,0.00056164,120]
[342802652,1732143101983,-500.0,0.00056164,120]
[342802653,1732143101992,-2375.8,0.00056164,120]
[342802654,1732143102001,-500.0,0.00056164,120]
[342802655,1732143102010,-498.27217692,0.00056164,120]
[342802656,1732143102019,-533.88,0.00056164,120]
[342802657,1732143102028,-726.78,0.00056164,120]
[342802658,1732143102037,-500.0,0.00056164,120]
[342802659,1732143102046,-3517.73,0.00056164,120]
[342802660,1732143102055,-500.0,0.00056164,120]
[342802661,1732143102064,-501.61990808,0.00056164,120]
[342802662,1732143102073,-500.0,0.00056164,120]
[342802663,1732143102082,-2949.54,0.00056164,120]
[342802664,1732143102091,-500.0,0.00056164,120]
[342802665,1732143102100,-680.36,0.00056164,120]
[342802666,1732143102109,-629.45,0.00056164,120]
[342802667,1732143102118,-500.0,0.00056164,120]
[342802668,1732143102127,-1835.32,0.00056164,120]
[342802669,1732143102136,-500.0,0.00056164,120]
[342802670,1732143102145,-1077.92,0.00056164,120]
[342802671,1732143102154,-567.38,0.00056164,120]
[342802672,1732143102163,-1270.02,0.00056164,120]
[342802673,1732143102174,-1080.78,0.00056164,120]
[342802674,1732143102183,-151.0,0.00056164,110]
[342802675,1732143102192,-500.0,0.00056164,120]
[342802676,1732143102202,-500.0,0.00056164,120]
[342802677,1732143102211,-794.46,0.00056164,120]
[342802678,1732143102221,-730.91,0.00056164,120]
[342802679,1732143102230,-836.47,0.00056164,120]
[342802680,1732143102240,-500.0,0.00056164,120]
[342802681,1732143102250,-1006.93,0.00056164,120]
[342802682,1732143102260,-877.06,0.00056164,120]
[342802683,1732143102271,-873.31,0.00056164,120]
[342802684,1732143102281,-500.0,0.00056164,120]
[342802685,1732143102291,-897.49,0.00056164,120]
[342802686,1732143102301,-500.0,0.00056164,120]
[342802687,1732143102311,-5067.66,0.00056164,120]
[342802688,1732143102321,-500.0,0.00056164,120]
[342802689,1732143102331,-500.0,0.00056164,120]
[342802690,1732143102341,-615.04,0.00056164,120]
[342802691,1732143102350,-1213.36,0.00056164,120]
[342802692,1732143102360,-537.82,0.00056164,120]
[342802693,1732143102370,-500.0,0.00056164,120]
[342802694,1732143102380,-500.0,0.00056164,120]
[342802695,1732143102390,-500.0,0.00056164,120]
[342802696,1732143102400,-500.0,0.00056164,120]
[342802697,1732143102410,-911.56,0.00056164,120]
[342802698,1732143102421,-1001.49,0.00056164,120]
[342802699,1732143102430,-1621.15,0.00056164,120]
[342802700,1732143102440,-1004.9,0.00056164,120]
[342802701,1732143102450,-286.7,0.00056164,120]
[342802702,1732143102460,-1363.03,0.00056164,120]
[342802703,1732143102469,-670.6,0.00056164,120]
[342802704,1732143102479,-4519.72,0.00056164,120]
[342802705,1732143102488,-681.14,0.00056164,120]
[342802706,1732143102498,-597.02,0.00056164,120]
[342802707,1732143102507,-1529.3,0.00056164,120]
[342802708,1732143102517,-500.0,0.00056164,120]
[342802709,1732143102526,-500.0,0.00056164,120]
[342802710,1732143102536,-500.0,0.00056164,120]
[342802711,1732143102545,-5382.48,0.00056164,120]
[342802712,1732143102555,-2209.36,0.00056164,120]
[342802713,1732143102564,-640.41,0.00056164,120]
[342802714,1732143102573,-1045.28,0.00056164,120]
[342802715,1732143102583,-500.0,0.00056164,120]
[342802716,1732143102592,-500.0,0.00056164,120]
[342802717,1732143102602,-3525.53,0.00056164,120]
[342802718,1732143102612,-5113.62,0.00056164,120]
[342802719,1732143102622,-500.0,0.00056164,120]
[342802720,1732143102631,-5128.91,0.00056164,120]
[342802721,1732143102640,-909.91,0.00056164,120]
[342802722,1732143102649,-500.0,0.00056164,120]
[342802723,1732143102659,-500.0,0.00056437,120]
[342802724,1732143102670,-500.0,0.00056438,120]
[342802725,1732143102679,-500.0,0.00056438,120]
[342802726,1732143102688,-500.0,0.00056438,120]
[342802727,1732143102698,-500.0,0.00056438,120]
[342802728,1732143102707,-500.0,0.00056438,120]
[342802729,1732143102716,-949.28,0.00056438,120]
[342802730,1732143102726,-588.18,0.00056438,120]
[342802731,1732143102735,-500.0,0.00056438,120]
[342802732,1732143102744,-475.80361993,0.00056438,120]
[342802733,1732143102754,-500.0,0.00056438,120]
[342802734,1732143102763,-485.87174292,0.00056438,120]
[342802735,1732143102772,-216.87,0.00056438,7]
[342802736,1732143102782,-500.0,0.00056438,120]
[342802737,1732143102791,-1647.84,0.00056438,120]
[342802738,1732143102801,-500.0,0.00056438,120]
[342802739,1732143102811,-672.22,0.00056438,120]
[342802740,1732143102820,-901.77,0.00056438,120]
[342802741,1732143102830,-500.0,0.00056438,120]
[342802742,1732143102840,-749.97,0.00056438,120]
[342802743,1732143102849,-500.0,0.00056438,120]
[342802744,1732143102859,-1584.28,0.00056438,120]
[342802745,1732143102869,-500.0,0.00056438,120]
[342802746,1732143102878,-500.0,0.00056438,120]
[342802747,1732143102891,-500.0,0.00056438,120]
[342802748,1732143102901,-698.15,0.00056438,120]
[342802749,1732143102911,-500.0,0.00056438,120]
[342802750,1732143102920,-500.0,0.00056438,120]
[342802751,1732143102930,-500.0,0.00056438,120]
[342802752,1732143102941,-500.0,0.00056438,120]
[342802753,1732143102951,-500.0,0.00056438,120]
[342802754,1732143102962,-500.0,0.00056438,120]
[342802755,1732143102972,-509.57831803,0.00056438,120]
[342802756,1732143102983,-550.21,0.00056438,120]
[342802757,1732143102992,-2000.0,0.00056438,30]
[342802758,1732143103002,-838.1,0.00056438,120]
[342802759,1732143103011,-500.0,0.00056438,120]
[342802760,1732143103021,-500.0,0.00056438,120]
[342802761,1732143103031,-678.26,0.00056438,120]
[342802762,1732143103040,-500.0,0.00056438,120]
[342802763,1732143103050,-528.71,0.00056438,120]
[342802764,1732143103060,-577.89,0.00056438,120]
[342802765,1732143103070,-1058.89,0.00056438,120]
[342802766,1732143103079,-500.0,0.00056438,120]
[342802767,1732143103089,-500.0,0.00056438,120]
[342802768,1732143103099,-516.05,0.00056438,120]
[342802769,1732143103110,-500.0,0.00056438,120]
[342802770,1732143103120,-500.0,0.00056438,120]
[342802771,1732143103130,-1582.8,0.00056438,120]
[342802772,1732143103139,-512.91,0.00056438,120]
[342802773,1732143103150,-910.7,0.00056438,120]
[342802774,1732143103160,-500.0,0.00056438,120]
[342802775,1732143103170,-686.07,0.00056438,120]
[342802776,1732143103180,-500.0,0.00056438,120]
[342802777,1732143103189,-718.84,0.00056438,120]
[342802778,1732143103199,-151.0,0.00056438,120]
[342802779,1732143103208,-500.0,0.00056438,120]
[342802780,1732143103218,-566.64,0.00056438,120]
[342802781,1732143103228,-500.0,0.00056438,120]
[342802782,1732143103238,-581.13,0.00056438,120]
[342802783,1732143103248,-558.19,0.00056438,120]
[342802784,1732143103258,-1275.31,0.00056438,120]
[342802785,1732143103267,-500.0,0.00056438,120]
[342802786,1732143103277,-500.0,0.00056438,120]
[342802787,1732143103287,-500.0,0.00056438,120]
[342802788,1732143103297,-646.55,0.00056438,120]
[342802789,1732143103306,-500.0,0.00056438,120]
[342802790,1732143103315,-889.52,0.00056438,120]
[342802791,1732143103326,-500.0,0.00056438,120]
[342802792,1732143103335,-1844.67,0.00056438,120]
[342802793,1732143103344,-1345.16,0.00056438,120]
[342802794,1732143103354,-500.0,0.00056438,120]
[342802795,1732143103364,-1354.36,0.00056438,120]
[342802796,1732143103374,-500.0,0.00056438,120]
[342802797,1732143103384,-500.0,0.00056438,120]
[342802798,1732143103394,-283.70076874,0.00056438,120]
[342802799,1732143103403,-1126.54,0.00056438,120]
[342802800,1732143103413,-810.54,0.00056438,120]
[342802801,1732143103423,-1630.49,0.00056438,120]
[342802802,1732143103434,-500.0,0.00056438,120]
[342802803,1732143103443,-1061.11,0.00056438,120]
[342802804,1732143103452,-1539.37,0.00056438,120]
[342802805,1732143103462,-500.0,0.00056438,120]
[342802806,1732143103471,-500.0,0.00056438,120]
[342802807,1732143103480,-616.53,0.00056438,120]
[342802808,1732143103489,-500.0,0.00056438,120]
[342802809,1732143103498,-1163.7,0.00056438,120]
[342802810,1732143103508,-500.0,0.00056438,120]
[342802811,1732143103517,-500.0,0.00056438,120]
[342802812,1732143103526,-1697.48,0.00056438,120]
[342802813,1732143103536,-500.0,0.00056438,120]
[342802814,1732143103546,-768.83,0.00056438,120]
[342802815,1732143103556,-1494.04,0.00056438,120]
[342802816,1732143103566,-583.76,0.00056438,120]
[342802817,1732143103575,-500.0,0.00056438,120]
[342802818,1732143103584,-500.0,0.00056438,120]
[342802819,1732143103594,-500.0,0.00056438,120]
[342802820,1732143103603,-500.0,0.00056438,120]
[342802821,1732143103614,-1417.12,0.00056438,120]
[342802822,1732143103623,-500.0,0.00056438,120]
[342802823,1732143103633,-500.0,0.00056438,120]
[342802824,1732143103644,-514.86,0.00056438,120]
[342802825,1732143103654,-580.28,0.00056438,120]
[342802826,1732143103663,-500.0,0.00056438,120]
[342802827,1732143103674,-500.0,0.00056438,120]
[342802828,1732143103683,-500.0,0.00056438,120]
[342802829,1732143103692,-500.0,0.00056438,120]
[342802830,1732143103702,-625.85,0.00056438,120]
[342802831,1732143103712,-500.0,0.00056438,120]
[342802832,1732143103721,-835.63,0.00056438,120]
[342802833,1732143103730,-500.0,0.00056438,120]
[342802834,1732143103740,-1642.42,0.00056438,7]
[342802835,1732143103751,-500.0,0.00056438,120]
[342802836,1732143103760,-1168.69,0.00056438,120]
[342802837,1732143103770,-500.0,0.00056438,14]
[342802838,1732143103779,-500.0,0.00056438,120]
[342802839,1732143103788,-785.67,0.00056438,120]
[342802840,1732143103797,-151.0,0.00056438,120]
[342802841,1732143103807,-526.48,0.00056438,120]
[342802842,1732143103817,-1791.8,0.00056438,120]
[342802843,1732143103827,-275.844712,0.00056438,120]
[342802844,1732143103837,-500.0,0.00056438,120]
[342802845,1732143103847,-500.0,0.00056438,120]
[342802846,1732143103858,-500.0,0.00056438,120]
[342802847,1732143103868,-171.66347367,0.00056438,30]
[342802848,1732143103879,-500.0,0.00056438,120]
[342802849,1732143103893,-500.0,0.00056438,120]
[342802850,1732143103902,-500.0,0.00056438,120]
[342802851,1732143103912,-764.29,0.00056438,120]
[342802852,1732143103923,-937.69,0.00056438,120]
[342802853,1732143103933,-830.14,0.00056438,120]
[342802854,1732143103942,-500.0,0.00056438,58]
[342802855,1732143103952,-500.0,0.00056438,120]
[342802856,1732143103963,-500.0,0.00056438,120]
[342802857,1732143103972,-1926.82,0.00056438,120]
[342802858,1732143103982,-151.0,0.00056438,120]
[342802859,1732143103992,-500.0,0.00056438,30]
[342802860,1732143104001,-513.97,0.00056438,120]
[342802861,1732143104011,-500.0,0.00056438,120]
[342802862,1732143104022,-1258.94,0.00056438,120]
[342802863,1732143104031,-151.0,0.00056438,120]
[342802864,1732143104041,-615.91,0.00056438,120]
[342802865,1732143104051,-500.0,0.00056438,120]
[342802866,1732143104060,-151.417751,0.00056438,120]
[342802867,1732143104070,-739.53,0.00056438,120]
[342802868,1732143104079,-500.0,0.00056438,120]
[342802869,1732143104089,-2364.09,0.00056438,120]
[342802870,1732143104098,-500.0,0.00056438,120]
[342802871,1732143104107,-500.0,0.00056438,120]
[342802872,1732143104117,-500.0,0.00056438,120]
[342802873,1732143104350,-1516.8,0.00056438,120]
[342802874,1732143104362,-644.03,0.00056438,120]
[342802875,1732143104372,-1222.69,0.00056438,120]
[342802876,1732143104382,-689.07,0.00056438,120]
[342802877,1732143104391,-2792.61,0.00056438,120]
[342802878,1732143104401,-500.0,0.00056438,120]
[342802879,1732143104411,-500.0,0.00056438,120]
[342802880,1732143104422,-500.0,0.00056438,120]
[342802881,1732143104431,-151.0,0.00056438,120]
[342802882,1732143104441,-598.66,0.00056438,120]
[342802883,1732143104451,-561.98051579,0.00056438,120]
[342802884,1732143104461,-500.0,0.00056438,120]
[342802885,1732143104470,-517.71,0.00056438,120]
[342802886,1732143104480,-696.8,0.00056438,120]
[342802887,1732143104490,-670.6,0.00056438,120]
[342802888,1732143104499,-1622.41,0.00056438,120]
[342802889,1732143104509,-500.0,0.00056438,120]
[342802890,1732143104518,-732.47,0.00056438,120]
[342802891,1732143104528,-500.0,0.00056438,120]
[342802892,1732143104538,-500.0,0.00056438,120]
[342802893,1732143104548,-500.0,0.00056438,120]
[342802894,1732143104558,-500.0,0.00056438,120]
[342802895,1732143104568,-3752.95,0.00056438,120]
[342802896,1732143104577,-500.0,0.00056438,120]
[342802897,1732143104587,-694.86,0.00056438,120]
[342802898,1732143104596,-500.0,0.00056438,120]
[342802899,1732143104607,-500.0,0.00056438,120]
[342802900,1732143104616,-527.72,0.00056438,120]
[342802901,1732143104626,-2754.45,0.00056438,120]
[342802902,1732143104635,-500.0,0.00056438,120]
[342802903,1732143104644,-500.0,0.00056438,60]
[342802904,1732143104654,-1552.42,0.00056438,120]
[342802905,1732143104664,-750.37,0.00056438,120]
[342802906,1732143104675,-777.0,0.00056438,120]
[342802907,1732143104685,-586.88,0.00056438,120]
[342802908,1732143104695,-500.0,0.00056438,120]
[342802909,1732143104704,-546.79,0.00056438,120]
[342802910,1732143104714,-500.0,0.00056438,120]
[342802911,1732143104724,-1410.35,0.00056438,120]
[342802912,1732143104734,-622.81,0.00056438,120]
[342802913,1732143104745,-500.0,0.00056438,120]
[342802914,1732143104755,-500.0,0.00056438,120]
[342802915,1732143104766,-1078.42,0.00056438,120]
[342802916,1732143104775,-2348.91,0.00056438,120]
[342802917,1732143104785,-1803.88,0.00056438,120]
[342802918,1732143104795,-875.42,0.00056438,120]
[342802919,1732143104804,-500.0,0.00056438,120]
[342802920,1732143104814,-908.45,0.00056438,120]
[342802921,1732143104823,-1745.98,0.00056438,120]
[342802922,1732143104833,-643.69,0.00056438,120]
[342802923,1732143104843,-659.6,0.00056438,120]
[342802924,1732143104852,-500.0,0.00056438,120]
[342802925,1732143104862,-1212.54,0.00056438,120]
[342802926,1732143104872,-2042.25,0.00056438,120]
[342802927,1732143104882,-828.06,0.00056438,120]
[342802928,1732143104896,-407.95189803,0.00056438,120]
[342802929,1732143104906,-611.12598946,0.00056438,120]
[342802930,1732143104915,-646.63,0.00056438,120]
[342802931,1732143104927,-806.31,0.00056438,120]
[342802932,1732143104937,-500.0,0.00056438,120]
[342802933,1732143104947,-1287.88,0.00056438,120]
[342802934,1732143104956,-1410.77,0.00056438,120]
[342802935,1732143104969,-500.0,0.00056438,120]
[342802936,1732143104979,-500.0,0.00056438,120]
[342802937,1732143104989,-623.91,0.00056438,120]
[342802938,1732143104999,-500.0,0.00056438,120]
[342802939,1732143105009,-228.273339,0.00056438,120]
[342802940,1732143105019,-500.0,0.00056438,120]
[342802941,1732143105028,-766.21,0.00056438,120]
[342802942,1732143105037,-500.0,0.00056438,120]
[342802943,1732143105047,-1000.52,0.00056438,120]
[342802944,1732143105057,-228.273339,0.00056438,120]
[342802945,1732143105066,-500.0,0.00056438,120]
[342802946,1732143105076,-500.0,0.00056438,120]
[342802947,1732143105086,-1013.49,0.00056438,120]
[342802948,1732143105097,-500.0,0.00056438,120]
[342802949,1732143105107,-811.56,0.00056438,120]
[342802950,1732143105116,-500.0,0.00056438,120]
[342802951,1732143105126,-3361.2,0.00056438,120]
[342802952,1732143105135,-151.0,0.00056438,120]
[342802953,1732143105145,-633.81,0.00056438,120]
[342802954,1732143105154,-1185.33,0.00056438,120]
[342802955,1732143105164,-244.673666,0.00056438,120]
[342802956,1732143105173,-838.48,0.00056438,120]
[342802957,1732143105183,-1382.6,0.00056438,120]
[342802958,1732143105193,-500.0,0.00056438,120]
[342802959,1732143105203,-244.673666,0.00056438,120]
[342802960,1732143105213,-500.0,0.00056438,120]
[342802961,1732143105223,-2198.56,0.00056438,120]
[342802962,1732143105233,-500.0,0.00056438,120]
[342802963,1732143105243,-658.16,0.00056438,120]
[342802964,1732143105253,-500.0,0.00056438,120]
[342802965,1732143105262,-151.0,0.00056438,120]
[342802966,1732143105272,-500.0,0.00056438,120]
[342802967,1732143105282,-500.0,0.00056438,120]
[342802968,1732143105291,-500.0,0.00056438,120]
[342802969,1732143105301,-581.06,0.00056438,120]
[342802970,1732143105310,-151.0,0.00056438,120]
[342802971,1732143105319,-500.0,0.00056438,120]
[342802972,1732143105329,-843.03,0.00056438,120]
[342802973,1732143105339,-500.0,0.00056438,120]
[342802974,1732143105349,-665.72,0.00056438,120]
[342802975,1732143105358,-789.82,0.00056438,120]
[342802976,1732143105368,-773.4,0.00056438,120]
[342802977,1732143105377,-660.24,0.00056438,120]
[342802978,1732143105386,-500.0,0.00056438,120]
[342802979,1732143105395,-504.35,0.00056438,120]
[342802980,1732143105405,-2411.2,0.00056438,120]
[342802981,1732143105414,-151.0,0.00056438,120]
[342802982,1732143105425,-500.0,0.00056438,120]
[342802983,1732143105434,-3997.56,0.00056438,120]
[342802984,1732143105443,-196.183035,0.00056438,120]
[342802985,1732143105454,-500.0,0.00056438,120]
[342802986,1732143105464,-500.0,0.00056438,120]
[342802987,1732143105474,-151.0,0.00056438,120]
[342802988,1732143105483,-500.0,0.00056438,120]
[342802989,1732143105492,-500.0,0.00056438,120]
[342802990,1732143105502,-151.0,0.00056438,7]
[342802991,1732143105512,-220.349852,0.00056438,120]
[342802992,1732143105521,-155.055593,0.00056438,120]
[342802993,1732143105530,-178.477726,0.00056438,120]
[342802994,1732143105540,-559.66,0.00056438,120]
[342802995,1732143105549,-1755.1,0.00056438,120]
[342802996,1732143105559,-500.0,0.00056438,120]
[342802997,1732143105568,-500.0,0.00056438,120]
[342802998,1732143105577,-1021.42,0.00056438,120]
[342802999,1732143105587,-968.59,0.00056438,120]
[342803000,1732143105597,-500.0,0.00056438,120]
[342803001,1732143105607,-747.74,0.00056438,120]
[342803002,1732143105617,-151.0,0.00056438,120]
[342803003,1732143105627,-650.26,0.00056438,120]
[342803004,1732143105637,-500.0,0.00056438,120]
[342803005,1732143105646,-552.66,0.00056438,120]
[342803006,1732143105655,-528.53,0.00056438,120]
[342803007,1732143105664,-500.0,0.00056438,120]
[342803008,1732143105673,-661.12,0.00056438,120]
[342803009,1732143105682,-4504.33,0.00056438,120]
[342803010,1732143105691,-500.0,0.00056438,120]
[342803011,1732143105700,-500.0,0.00056438,120]
[342803012,1732143105708,-500.0,0.00056438,120]
[342803013,1732143105718,-1414.7,0.00056438,120]
[342803014,1732143105727,-500.0,0.00056438,120]
[342803015,1732143105737,-1839.1,0.00056438,20]